bitfinex-derivatives/quotes_BTCF0:USTF0_20210108
["timestamp","ask_amount","ask_price","bid_price","bid_amount"]
[1610114959945,0.11757,41204.0,41190.0,0.0299703]
[1610114960146,0.11757,41204.0,41190.0,0.02970106]
[1610114960547,0.11757,41204.0,41190.0,0.02997029]
[1610114960949,0.26402561,41213.0,41190.0,0.02997029]
[1610114961348,0.13632608,41191.0,41190.0,0.02997029]
[1610114967056,0.13632608,41191.0,41183.0,0.0299726]
[1610114967458,0.13632608,41191.0,41190.0,0.02997319]
[1610114967658,0.13632608,41191.0,41184.0,0.02997395]
[1610114967858,0.13632608,41191.0,41190.0,0.02997424]
[1610114968258,0.13632608,41191.0,41185.0,0.02997471]
[1610114968457,0.13632608,41191.0,41190.0,0.02997495]
[1610114968661,0.13632608,41191.0,41186.0,0.02997547]
[1610114968860,0.13632608,41191.0,41182.0,0.0299756]
[1610114969159,0.13632608,41191.0,41187.0,0.02997555]
[1610114969360,0.1167,41194.0,41187.0,0.02997555]
[1610114969560,0.1167,41194.0,41183.0,0.02997544]
[1610114969762,0.1167,41194.0,41181.0,0.13632608]
[1610114969763,0.1167,41194.0,41182.0,0.02997471]
[1610114970063,0.1167,41194.0,41184.0,0.02997418]
[1610114970364,0.1167,41194.0,41183.0,0.02997429]
[1610114970565,0.1167,41194.0,41185.0,0.02997409]
[1610114970763,0.1167,41194.0,41181.0,0.13632608]
[1610114970764,0.1167,41194.0,41184.0,0.02997423]
[1610114971063,0.1167,41194.0,41186.0,0.00026927]
[1610114971364,0.13632608,41187.0,41185.0,0.02997352]
[1610114971564,0.13632608,41187.0,41183.0,0.02970412]
[1610114971768,0.13632608,41187.0,41182.0,0.02997373]
[1610114972164,0.13632608,41187.0,41184.0,0.02997394]
[1610114972364,0.13632608,41187.0,41183.0,0.02997385]
[1610114972565,0.13632608,41187.0,41185.0,0.02997398]
[1610114972966,0.13632608,41187.0,41184.0,0.02997387]
[1610114973265,0.13632608,41187.0,41186.0,0.0299739]
[1610114973465,0.13632608,41187.0,41185.0,0.02997281]
[1610114973765,0.13632608,41187.0,41186.0,0.02997284]
[1610114973966,0.13632608,41187.0,41182.0,0.02997278]
[1610114974165,0.13632608,41187.0,41186.0,0.02997306]
[1610114974568,0.13632608,41187.0,41183.0,0.02997303]
[1610114974768,0.13632608,41187.0,41182.0,0.02997243]
[1610114974971,0.13632608,41187.0,41184.0,0.02997226]
[1610114975269,0.13632608,41187.0,41183.0,0.02997232]
[1610114975467,0.13632608,41187.0,41182.0,0.02997232]
[1610114975867,0.13632608,41187.0,41184.0,0.02997222]
[1610114976068,0.13632608,41187.0,41183.0,0.02997203]
[1610114976270,0.13632608,41187.0,41182.0,0.02997182]
[1610114976570,0.13632608,41187.0,41184.0,0.02997152]
[1610114976770,0.13632608,41187.0,41182.0,0.02997146]
[1610114977070,0.13632608,41187.0,41185.0,0.02997137]
[1610114977272,0.13632608,41187.0,41186.0,0.13632608]
[1610114977671,0.13632608,41187.0,41186.0,0.16629739]
[1610114991780,0.08564,41203.0,41186.0,0.16629739]
[1610114992081,0.26402561,41213.0,41187.0,0.02997012]
[1610114993380,0.26402561,41213.0,41203.0,0.13632608]
[1610114993981,0.26402561,41213.0,41204.0,0.02996735]
[1610114995382,0.13632608,41205.0,41204.0,0.02996735]
[1610114998387,0.13632608,41205.0,41185.0,0.029969]
[1610114998688,0.13632608,41205.0,41184.0,0.11317]
[1610114998689,0.13632608,41205.0,41204.0,0.02996946]
[1610114999086,0.13632608,41205.0,41186.0,0.02997061]
[1610114999288,0.13632608,41205.0,41204.0,0.00026719]
[1610114999488,0.13632608,41205.0,41190.0,0.13632608]
[1610114999686,0.13632608,41205.0,41191.0,0.00026719]
[1610114999890,0.13632608,41205.0,41191.0,0.02997074]
[1610115001088,2.9402,41193.0,41191.0,0.02997074]
[1610115001290,2.9402,41193.0,41185.0,0.02997256]
[1610115001489,0.13632608,41192.0,41185.0,0.02997256]
[1610115001690,0.13632608,41192.0,41176.0,0.13632608]
[1610115001991,0.13632608,41192.0,41186.0,0.02997623]
[1610115002290,0.13632608,41192.0,41176.0,0.13632608]
[1610115002291,0.13632608,41192.0,41177.0,0.02997653]
[1610115002492,0.13632608,41192.0,41187.0,0.02997683]
[1610115002790,0.13632608,41192.0,41178.0,0.02997724]
[1610115003090,0.13632608,41192.0,41188.0,0.02997733]
[1610115003289,0.13632608,41192.0,41179.0,0.02997695]
[1610115003492,0.13632608,41180.0,41176.0,0.13632608]
[1610115004091,0.13632608,41180.0,41177.0,0.02997715]
[1610115004892,0.10915,41198.0,41177.0,0.02997715]
[1610115005494,0.13632608,41196.0,41195.0,0.13632608]
[1610115005893,0.13632608,41196.0,41195.0,0.16629812]
[1610115006093,0.13632608,41196.0,41195.0,0.02997204]
[1610115006294,0.13632608,41196.0,41176.0,0.08578089]
[1610115006693,0.13632608,41196.0,41176.0,0.05580887]
[1610115006899,3.7318,41195.0,41177.0,0.02997382]
[1610115007094,3.7318,41195.0,41176.0,0.0857832]
[1610115007394,3.7318,41195.0,41182.0,0.13632608]
[1610115007894,3.7318,41195.0,41183.0,0.02997519]
[1610115008495,3.7318,41195.0,41184.0,0.00026725]
[1610115008695,3.7318,41195.0,41184.0,0.02997611]
[1610115008896,1.60915,41198.0,41184.0,0.02997611]
[1610115009098,4.52835,41198.0,41179.0,0.02997633]
[1610115009296,1.60915,41198.0,41179.0,0.02997633]
[1610115009498,0.13632608,41180.0,41174.0,0.13632608]
[1610115010096,0.13632608,41180.0,41175.0,0.02997805]
[1610115011397,0.13632608,41191.0,41189.0,0.13632608]
[1610115011897,0.13632608,41191.0,41190.0,0.02997486]
[1610115014801,0.13632608,41191.0,41190.0,0.02970762]
[1610115018604,0.13632608,41191.0,41190.0,0.06780762]
[1610115031821,2.20852608,41191.0,41175.0,0.0002]
[1610115032121,3.5945,41176.0,41175.0,0.0002]
[1610115032523,3.5945,41176.0,41175.0,0.00046449]
[1610115032722,3.5945,41176.0,41175.0,0.0002]
[1610115033025,3.5945,41176.0,41175.0,0.00046449]
[1610115033523,5.0945,41176.0,41175.0,0.00046449]
[1610115033724,5.23082608,41176.0,41175.0,0.00046449]
[1610115033925,5.23082608,41176.0,41158.0,0.02959231]
[1610115034125,1.63632608,41176.0,41158.0,0.02959231]
[1610115034326,2.9584,41163.0,41158.0,0.02959231]
[1610115034526,1.5,41162.0,41148.0,0.08536726]
[1610115034730,1.5,41162.0,41159.0,0.02986077]
[1610115035127,1.5,41162.0,41153.0,0.08982]
[1610115035327,1.5,41162.0,41160.0,0.00026703]
[1610115035529,1.5,41161.0,41154.0,0.02986319]
[1610115035728,1.63632608,41161.0,41144.0,0.12685]
[1610115035928,3.0224,41154.0,41144.0,0.12685]
[1610115036130,1.5,41153.0,41145.0,0.02863961]
[1610115036329,1.5,41153.0,41122.0,2.51307766]
[1610115036731,1.5,41153.0,41060.0,3.40004625]
[1610115036732,4.0331,41137.0,41123.0,0.02749402]
[1610115037232,4.0331,41137.0,41118.0,0.02749682]
[1610115037434,4.0331,41137.0,41124.0,0.027497]
[1610115037633,0.13632608,41125.0,41124.0,0.12653]
[1610115038236,0.13632608,41125.0,41124.0,0.15402806]
[1610115039237,0.60422608,41125.0,41124.0,0.12679165]
[1610115041136,0.60422608,41125.0,41124.0,0.12653]
[1610115042036,0.13632608,41125.0,41124.0,0.12653]
[1610115042639,0.13632608,41125.0,41099.0,3.0794]
[1610115042937,0.13632608,41125.0,41072.0,2.64113105]
[1610115042938,3.4885,41118.0,41077.0,2.49451232]
[1610115043338,1.5,41117.0,41079.0,0.00026176]
[1610115043637,0.13632608,41079.0,41078.0,0.00026178]
[1610115043837,0.13632608,41079.0,41074.0,0.13632608]
[1610115044037,2.87272608,41079.0,41075.0,0.00026182]
[1610115044240,2.87272608,41079.0,41075.0,0.08290182]
[1610115044741,2.87272608,41079.0,41076.0,0.00026191]
[1610115045540,2.87272608,41079.0,41075.0,0.08264]
[1610115045743,0.13632608,41079.0,41075.0,0.08264]
[1610115046441,0.0998,41120.0,41075.0,0.08264]
[1610115047142,1.5998,41120.0,41075.0,0.08264]
[1610115047744,0.13632608,41088.0,41078.0,0.13632608]
[1610115049748,0.13632608,41088.0,41087.0,0.13632608]
[1610115049945,0.13632608,41088.0,41087.0,0.24840608]
[1610115051955,0.13632608,41088.0,41087.0,0.11208]
[1610115054952,0.13632608,41088.0,41076.0,0.13632608]
[1610115055653,0.23093675,41079.0,41075.0,0.08264]
[1610115055853,0.23093675,41079.0,41047.0,0.2753]
[1610115056153,0.23093675,41079.0,41054.0,4.0009]
[1610115056353,0.23093675,41079.0,41054.0,4.10573]
[1610115057753,0.23093675,41079.0,41078.0,0.13632608]
[1610115058053,0.23093675,41079.0,41078.0,0.21461608]
[1610115058556,2.8376,41125.0,41078.0,0.21461608]
[1610115058753,0.00291862,41160.0,41078.0,0.21461608]
[1610115059053,0.00029771,41124.0,41084.0,3.2218]
[1610115059253,0.02144318,41129.0,41078.0,0.21461608]
[1610115059454,0.02144318,41129.0,41083.0,3.1604]
[1610115059653,0.00029769,41123.0,41104.0,0.13632608]
[1610115059954,0.00029769,41128.0,41104.0,0.13632608]
[1610115060153,0.00029769,41122.0,41104.0,0.13632608]
[1610115060354,0.00029769,41127.0,41104.0,0.26099608]
[1610115060553,0.09004,41131.0,41104.0,0.26099608]
[1610115060954,0.00029767,41126.0,41104.0,0.26099608]
[1610115061255,0.00029767,41130.0,41104.0,0.26099608]
[1610115061455,0.00029767,41125.0,41104.0,0.26099608]
[1610115061653,0.13632608,41109.0,41104.0,0.26099608]
[1610115063657,0.13632608,41109.0,41104.0,0.12467]
[1610115065358,0.13632608,41109.0,41095.0,0.13632608]
[1610115065658,0.13632608,41096.0,41095.0,0.13632608]
[1610115066258,0.05953982,41124.0,41095.0,0.13632608]
[1610115066464,3.9112,41125.0,41095.0,0.25648608]
[1610115066765,0.01999853,41123.0,41095.0,0.25648608]
[1610115066967,0.01999843,41124.0,41101.0,2.8296]
[1610115067182,0.33623052,41139.0,41101.0,2.8296]
[1610115067561,0.01999575,41138.0,41101.0,2.8296]
[1610115067763,0.01999575,41138.0,41132.0,0.13632608]
[1610115067963,0.05952415,41159.0,41132.0,0.13632608]
[1610115068277,0.01999073,41151.0,41132.0,0.13632608]
[1610115068475,0.10655,41152.0,41132.0,0.13632608]
[1610115068863,0.0199898,41150.0,41132.0,0.13632608]
[1610115069064,0.01998968,41151.0,41132.0,0.13632608]
[1610115069362,0.00029747,41149.0,41132.0,0.13632608]
[1610115069562,0.07934,41164.0,41132.0,0.13632608]
[1610115069765,0.01998744,41163.0,41146.0,0.13632608]
[1610115069964,0.01998744,41163.0,41128.0,3.9177]
[1610115070463,0.01998744,41163.0,41125.0,0.10612]
[1610115070664,0.01998744,41163.0,41134.0,3.6104]
[1610115070864,0.08893,41173.0,41134.0,3.6104]
[1610115070865,0.01998482,41168.0,41134.0,3.7321]
[1610115071067,0.01998314,41172.0,41134.0,3.7321]
[1610115071367,0.05947482,41196.0,41134.0,3.7321]
[1610115071368,0.01998275,41167.0,41134.0,3.7321]
[1610115071868,0.05947482,41196.0,41134.0,3.7321]
[1610115071869,0.13632608,41153.0,41151.0,0.13632608]
[1610115073268,0.13632608,41153.0,41134.0,3.7321]
[1610115073668,0.13632608,41148.0,41142.0,0.13632608]
[1610115075269,0.08479,41183.0,41142.0,0.13632608]
[1610115075671,0.00029733,41182.0,41157.0,0.13632608]
[1610115076871,0.08479,41183.0,41134.0,3.7321]
[1610115077070,0.5498,41181.0,41134.0,3.7321]
[1610115077472,0.63706,41181.0,41134.0,3.7321]
[1610115077771,0.13632608,41135.0,41134.0,0.1217]
[1610115077971,0.13632608,41135.0,41125.0,0.10612]
[1610115078172,0.13632608,41135.0,41115.0,3.0542]
[1610115079773,0.13632608,41116.0,41115.0,3.0542]
[1610115079975,0.13632608,41116.0,41105.0,0.13632608]
[1610115081777,0.13632608,41107.0,41105.0,0.13632608]
[1610115082278,3.6802,41140.0,41105.0,0.13632608]
[1610115082476,3.6802,41140.0,41105.0,0.26227608]
[1610115083481,3.6802,41140.0,41105.0,0.74367608]
[1610115083681,0.08658,41141.0,41124.0,0.13632608]
[1610115083883,0.08658,41141.0,41110.0,2.795]
[1610115084683,0.10894,41141.0,41110.0,2.795]
[1610115085783,0.13632608,41117.0,41115.0,0.13632608]
[1610115086686,0.10894,41141.0,41115.0,0.13632608]
[1610115087785,0.10894,41141.0,41126.0,0.13632608]
[1610115089592,0.109,41150.0,41126.0,0.13632608]
[1610115089791,0.12142,41159.0,41132.0,0.13632608]
[1610115089992,5.3499,41165.0,41114.0,0.12263]
[1610115090394,5.3499,41165.0,41115.0,0.00027582]
[1610115090895,0.2746104,41141.0,41115.0,0.00027582]
[1610115091192,1.5,41140.0,41115.0,0.00027582]
[1610115091893,0.13632608,41116.0,41115.0,0.00027582]
[1610115092594,0.08488,41130.0,41115.0,0.00027582]
[1610115093607,0.3959404,41141.0,41115.0,0.00027582]
[1610115093806,0.13632608,41121.0,41117.0,0.13632608]
[1610115094404,0.13632608,41121.0,41118.0,0.00026528]
[1610115095899,0.13632608,41121.0,41114.0,0.12263]
[1610115095900,0.13632608,41121.0,41115.0,0.0002653]
[1610115096098,0.13632608,41121.0,41119.0,0.0002653]
[1610115096499,0.13632608,41121.0,41116.0,0.0002653]
[1610115096699,0.13632608,41121.0,41120.0,0.0002653]
[1610115096900,0.13632608,41121.0,41117.0,0.00026532]
[1610115097301,0.13632608,41121.0,41120.0,0.00026532]
[1610115097504,0.13632608,41121.0,41118.0,0.00026532]
[1610115097704,0.13632608,41121.0,41120.0,0.00026532]
[1610115097902,0.13632608,41121.0,41114.0,0.12263]
[1610115097903,0.13632608,41121.0,41117.0,0.13632608]
[1610115098304,0.13632608,41121.0,41120.0,0.00026532]
[1610115098504,0.13632608,41121.0,41118.0,0.00026532]
[1610115102208,0.3959404,41141.0,41118.0,0.00026532]
[1610115103813,0.13632608,41119.0,41118.0,0.00026532]
[1610115107018,0.13632608,41119.0,41118.0,0.02954425]
[1610115108018,0.3959404,41141.0,41118.0,0.02954425]
[1610115109518,0.3959404,41141.0,41118.0,3.49374425]
[1610115109818,0.3959404,41141.0,41128.0,0.13632608]
[1610115110419,0.3959404,41141.0,41129.0,0.02954233]
[1610115111822,0.13632608,41130.0,41129.0,0.02954233]
[1610115115624,0.13632608,41130.0,41129.0,0.08437961]
[1610115115925,0.13632608,41130.0,41129.0,0.02954233]
[1610115119827,0.13632608,41130.0,41120.0,0.13632608]
[1610115120028,0.13632608,41130.0,41129.0,0.02954527]
[1610115120430,0.13632608,41130.0,41121.0,0.02954549]
[1610115120628,0.13632608,41130.0,41129.0,0.02954545]
[1610115120828,0.13632608,41130.0,41121.0,0.02954551]
[1610115121328,0.13632608,41130.0,41129.0,0.02954549]
[1610115121530,0.13632608,41130.0,41122.0,0.02954582]
[1610115121728,0.13632608,41130.0,41129.0,0.02954568]
[1610115121927,0.13632608,41130.0,41123.0,0.0295456]
[1610115122128,0.13632608,41130.0,41129.0,0.02954558]
[1610115122428,0.13632608,41130.0,41124.0,0.02954556]
[1610115122731,0.13632608,41130.0,41129.0,0.02954553]
[1610115122928,0.13632608,41130.0,41125.0,0.02954572]
[1610115123329,0.13632608,41130.0,41129.0,0.02954606]
[1610115123529,0.13632608,41130.0,41126.0,0.02954589]
[1610115123730,0.13632608,41130.0,41129.0,0.0295455]
[1610115124029,0.13632608,41130.0,41127.0,0.02954546]
[1610115124229,0.13632608,41130.0,41121.0,0.02954532]
[1610115124631,0.13632608,41130.0,41128.0,0.02954537]
[1610115124832,0.13632608,41130.0,41122.0,0.02954565]
[1610115125031,0.13632608,41130.0,41129.0,0.02954572]
[1610115125431,0.13632608,41130.0,41123.0,0.02954596]
[1610115125634,0.13632608,41130.0,41121.0,0.02954589]
[1610115125833,0.13632608,41130.0,41124.0,0.02948298]
[1610115126033,0.13632608,41125.0,41124.0,0.02948298]
[1610115126233,0.13632608,41125.0,41122.0,0.02948293]
[1610115126433,0.13632608,41125.0,41121.0,0.02948207]
[1610115126633,0.13632608,41125.0,41123.0,0.0294819]
[1610115127034,0.13632608,41125.0,41122.0,0.0294819]
[1610115127234,0.13632608,41125.0,41121.0,0.02948177]
[1610115127534,0.13632608,41125.0,41123.0,0.02948202]
[1610115127835,0.13632608,41125.0,41121.0,0.02948197]
[1610115128035,0.13632608,41125.0,41124.0,0.02948497]
[1610115128235,0.13632608,41125.0,41122.0,0.02948501]
[1610115128435,0.13632608,41125.0,41124.0,0.0294851]
[1610115128734,0.13632608,41125.0,41123.0,0.02948574]
[1610115129135,0.13632608,41125.0,41124.0,0.02948697]
[1610115129335,0.13632608,41125.0,41121.0,0.02948688]
[1610115129535,0.13632608,41125.0,41124.0,0.02948608]
[1610115129936,0.13632608,41125.0,41122.0,0.02948595]
[1610115130237,0.13632608,41125.0,41124.0,0.02948595]
[1610115130437,0.13632608,41125.0,41123.0,0.02948595]
[1610115130638,0.13632608,41125.0,41124.0,0.02948629]
[1610115131139,0.13632608,41125.0,41121.0,0.0294864]
[1610115131339,0.13632608,41125.0,41124.0,0.02948638]
[1610115131539,0.13632608,41125.0,41124.0,0.11617638]
[1610115131739,0.13632608,41125.0,41124.0,0.08669]
[1610115131939,0.13632608,41125.0,41124.0,0.11617608]
[1610115132440,0.64342608,41125.0,41124.0,0.11617608]
[1610115133140,0.13632608,41125.0,41124.0,0.11617608]
[1610115133541,2.87172608,41125.0,41124.0,0.11617608]
[1610115134844,2.87172608,41125.0,41114.0,0.12263]
[1610115135045,4.37172608,41125.0,41105.0,0.12595]
[1610115135247,4.37172608,41125.0,41093.0,3.3932]
[1610115135446,4.37172608,41125.0,41108.0,0.02830529]
[1610115135645,4.37172608,41125.0,41107.0,0.11762]
[1610115135845,4.37172608,41125.0,41109.0,0.02830826]
[1610115136045,0.13632608,41110.0,41109.0,0.02830826]
[1610115136244,0.5763,41109.0,41108.0,0.02830951]
[1610115136545,0.5763,41109.0,41107.0,0.11762]
[1610115136745,0.5763,41109.0,41108.0,0.0283103]
[1610115138246,0.5763,41109.0,41108.0,0.00026252]
[1610115141450,0.5763,41109.0,41107.0,0.11762]
[1610115141750,0.5763,41109.0,41108.0,0.00026251]
[1610115141951,0.13632608,41110.0,41108.0,0.00026251]
[1610115142151,0.13632608,41110.0,41105.0,0.10724]
[1610115142555,0.13632608,41110.0,41109.0,0.00026251]
[1610115142753,0.13632608,41110.0,41106.0,0.02830733]
[1610115142958,0.13632608,41110.0,41109.0,0.00026249]
[1610115143853,0.13632608,41110.0,41108.0,0.00026249]
[1610115144156,0.13632608,41110.0,41109.0,0.13658857]
[1610115145254,0.13632608,41110.0,41109.0,0.16463113]
[1610115146758,0.11382,41131.0,41109.0,0.16463113]
[1610115146958,0.11382,41131.0,41113.0,3.5939]
[1610115147158,0.12133,41141.0,41114.0,0.02830221]
[1610115147360,0.2755,41145.0,41114.0,0.12780221]
[1610115147760,0.2755,41145.0,41115.0,0.02830023]
[1610115148162,0.13632608,41126.0,41121.0,0.13632608]
[1610115148360,0.13632608,41126.0,41121.0,0.57472608]
[1610115148560,0.2755,41145.0,41122.0,0.00026243]
[1610115148865,0.2755,41145.0,41122.0,0.02829886]
[1610115149262,0.11991,41149.0,41130.0,2.9022]
[1610115149460,0.11991,41149.0,41130.0,2.99205]
[1610115149663,0.11991,41149.0,41131.0,0.0002624]
[1610115149860,0.00302912,41159.0,41131.0,0.02829219]
[1610115150166,0.00736209,41165.0,41152.0,0.13632608]
[1610115150363,0.02195301,41168.0,41152.0,0.13632608]
[1610115150561,0.02195301,41168.0,41153.0,0.0002633]
[1610115150863,0.00736624,41169.0,41151.0,2.93190911]
[1610115151061,0.0073663,41170.0,41151.0,2.93190911]
[1610115151261,0.0073663,41170.0,41152.0,0.00026326]
[1610115151962,0.0073663,41170.0,41147.0,0.00026326]
[1610115152164,0.00029752,41169.0,41148.0,0.13632608]
[1610115152462,0.00765647,41169.0,41149.0,0.00026326]
[1610115152662,0.5182,41168.0,41149.0,0.00026326]
[1610115152865,0.52585506,41168.0,41149.0,0.00026326]
[1610115153064,0.52555754,41168.0,41147.0,0.00026326]
[1610115153265,0.52555754,41168.0,41150.0,0.00026328]
[1610115153464,0.00029755,41167.0,41148.0,0.00026328]
[1610115153666,0.02219562,41167.0,41148.0,0.00026328]
[1610115153968,0.52554667,41168.0,41151.0,0.00026328]
[1610115154165,0.13632608,41152.0,41149.0,0.00026677]
[1610115154367,0.13632608,41152.0,41141.0,3.8826]
[1610115154569,0.13632608,41152.0,41150.0,0.00026677]
[1610115154971,0.13632608,41152.0,41142.0,0.00026677]
[1610115155169,0.13632608,41152.0,41151.0,0.00026677]
[1610115155371,0.13632608,41152.0,41143.0,0.00026677]
[1610115155571,0.13632608,41152.0,41142.0,0.00026675]
[1610115155869,0.13632608,41152.0,41144.0,0.00026675]
[1610115156169,0.13632608,41152.0,41151.0,0.13632608]
[1610115156368,0.13632608,41152.0,41151.0,0.13659283]
[1610115157071,0.12158,41170.0,41151.0,0.13659283]
[1610115157470,0.2734,41173.0,41152.0,0.00026675]
[1610115158270,0.13632608,41153.0,41152.0,0.00026675]
[1610115159276,0.13632608,41153.0,41151.0,0.13632608]
[1610115159774,0.13632608,41153.0,41152.0,0.00026673]
[1610115160576,0.11582,41170.0,41152.0,0.00026673]
[1610115162278,0.13632608,41157.0,41152.0,0.00026673]
[1610115164177,0.13632608,41157.0,41156.0,0.13632608]
[1610115165078,0.03356385,41152.0,41151.0,0.0888]
[1610115165679,0.03356385,41152.0,41151.0,0.08906672]
[1610115165880,0.03356385,41152.0,41151.0,0.00026672]
[1610115166080,0.03356385,41152.0,41141.0,0.00026672]
[1610115166278,0.03356385,41152.0,41151.0,0.13632608]
[1610115166481,0.03356385,41152.0,41151.0,0.2237628]
[1610115166681,0.13632608,41157.0,41151.0,0.2237628]
[1610115166883,0.08726,41181.0,41151.0,0.2237628]
[1610115167383,0.007276,41189.0,41151.0,0.2237628]
[1610115167384,0.007276,41189.0,41152.0,0.00026667]
[1610115167784,0.00724107,41192.0,41152.0,0.00026667]
[1610115168184,0.00723234,41191.0,41171.0,0.13632608]
[1610115168384,0.11884,41191.0,41171.0,0.13632608]
[1610115169385,0.11884,41191.0,41172.0,0.0002666]
[1610115169586,0.11884,41191.0,41172.0,0.1263866]
[1610115170185,0.13632608,41187.0,41184.0,0.13632608]
[1610115170584,0.03062608,41187.0,41184.0,0.13632608]
[1610115171685,0.08206,41211.0,41184.0,0.13632608]
[1610115171985,0.08206,41211.0,41184.0,0.22520608]
[1610115172188,0.13632608,41197.0,41193.0,0.13632608]
[1610115173788,0.13632608,41197.0,41184.0,0.08888]
[1610115174289,0.13632608,41185.0,41184.0,0.08888]
[1610115177092,0.13632608,41185.0,41181.0,0.13632608]
[1610115178196,0.18785219,41157.0,41151.0,0.08717]
[1610115178397,0.13632608,41185.0,41133.0,2.48664561]
[1610115178597,0.13632608,41185.0,41134.0,2.48580026]
[1610115178797,0.13632608,41185.0,41141.0,0.02999606]
[1610115179097,0.13632608,41185.0,41141.0,0.13676606]
[1610115179297,0.13632608,41185.0,41141.0,0.10677]
[1610115179699,0.13632608,41185.0,41142.0,0.02999583]
[1610115180300,0.10462694,41197.0,41175.0,0.13632608]
[1610115180501,0.10462694,41197.0,41175.0,0.25372608]
[1610115182302,0.13632608,41186.0,41183.0,0.13632608]
[1610115188308,0.13632608,41194.0,41183.0,0.13632608]
[1610115190313,0.13632608,41194.0,41193.0,0.13632608]
[1610115196819,0.10462694,41197.0,41193.0,0.13632608]
[1610115197019,0.10462694,41197.0,41193.0,0.13659409]
[1610115197220,0.10462694,41197.0,41194.0,0.00026801]
[1610115199220,0.13632608,41207.0,41194.0,0.00026801]
[1610115200620,0.13632608,41207.0,41206.0,0.13632608]
[1610115203521,0.13632608,41207.0,41206.0,0.13659594]
[1610115207323,0.2928,41240.0,41206.0,0.13659594]
[1610115207728,0.00029711,41239.0,41207.0,0.00026981]
[1610115208026,0.08757711,41239.0,41207.0,0.00026981]
[1610115208527,0.08728,41239.0,41224.0,0.13632608]
[1610115209828,0.08728,41239.0,41225.0,0.00027165]
[1610115210529,0.13632608,41226.0,41225.0,0.00027165]
[1610115210931,0.13632608,41226.0,41224.0,0.13632608]
[1610115217941,0.13632608,41226.0,41212.0,0.08282]
[1610115218142,0.13632608,41226.0,41199.0,0.08912]
[1610115218444,0.08554,41230.0,41213.0,0.00027441]
[1610115218843,0.08554,41230.0,41202.0,0.12779]
[1610115219042,0.08554,41230.0,41214.0,0.00027443]
[1610115219252,0.08554,41230.0,41203.0,0.00027447]
[1610115219644,0.08554,41230.0,41202.0,0.12779]
[1610115219843,0.08554,41230.0,41204.0,0.00027448]
[1610115220043,0.08554,41230.0,41203.0,0.0002745]
[1610115220444,0.08554,41230.0,41202.0,0.12779]
[1610115220445,0.13632608,41206.0,41205.0,0.0002745]
[1610115220644,0.13632608,41206.0,41204.0,0.13660058]
[1610115220945,0.13632608,41206.0,41204.0,0.13632608]
[1610115221246,0.13632608,41206.0,41205.0,0.00027449]
[1610115225347,0.13632608,41206.0,41203.0,0.00027449]
[1610115225549,0.13632608,41206.0,41205.0,0.00027449]
[1610115225947,0.13632608,41206.0,41202.0,0.12779]
[1610115226147,0.13632608,41206.0,41203.0,0.0002745]
[1610115230152,0.13632608,41206.0,41188.0,0.00027455]
[1610115230353,0.26340608,41206.0,41204.0,0.00027455]
[1610115230553,0.26340608,41206.0,41189.0,0.00027455]
[1610115230853,0.26340608,41206.0,41205.0,0.00027455]
[1610115231756,0.26340608,41206.0,41191.0,0.00027455]
[1610115231956,0.26340608,41206.0,41188.0,0.00027455]
[1610115232155,0.26340608,41206.0,41192.0,0.00027457]
[1610115232555,0.26340608,41206.0,41189.0,0.00027457]
[1610115232556,0.13632608,41190.0,41189.0,0.00027457]
[1610115232758,0.13632608,41190.0,41175.0,0.1174]
[1610115232957,0.13632608,41190.0,41189.0,0.00027457]
[1610115233257,0.13632608,41190.0,41188.0,0.00027457]
[1610115233456,0.13632608,41190.0,41189.0,0.00027457]
[1610115233958,0.13632608,41190.0,41176.0,0.02999845]
[1610115234358,0.13632608,41190.0,41189.0,0.00027457]
[1610115234660,0.13632608,41190.0,41181.0,0.13632608]
[1610115234958,0.13632608,41190.0,41182.0,0.00027457]
[1610115236662,0.13632608,41183.0,41182.0,0.00027457]
[1610115237662,0.13632608,41183.0,41182.0,0.00027459]
[1610115243868,0.13632608,41183.0,41182.0,0.02999989]
[1610115244169,0.12708,41206.0,41182.0,0.02999989]
[1610115244371,0.08554,41219.0,41182.0,0.02999989]
[1610115244569,0.2895,41228.0,41207.0,0.13632608]
[1610115245171,0.2895,41228.0,41208.0,0.00027451]
[1610115245372,0.08554,41230.0,41208.0,0.00027451]
[1610115245572,0.80383214,41255.0,41208.0,0.00027451]
[1610115245573,0.51746007,41248.0,41208.0,0.00027451]
[1610115245975,0.51739803,41249.0,41208.0,0.00027451]
[1610115246173,0.51794889,41253.0,41208.0,0.02998556]
[1610115246573,0.81036316,41254.0,41239.0,0.13632608]
[1610115246775,0.2923,41254.0,41239.0,0.13632608]
[1610115246972,0.2923,41254.0,41240.0,0.00027439]
[1610115248575,0.2923,41254.0,41235.0,0.13632608]
[1610115248776,0.41053,41254.0,41235.0,0.13632608]
[1610115249075,0.41053,41254.0,41236.0,0.00027473]
[1610115249775,0.87657274,41254.0,41236.0,0.00027473]
[1610115250578,0.13632608,41237.0,41236.0,0.00027473]
[1610115250776,0.58427274,41254.0,41236.0,0.00027473]
[1610115250978,0.58427274,41254.0,41236.0,0.09921473]
[1610115251379,0.58427274,41254.0,41237.0,0.00027466]
[1610115252680,0.58427274,41254.0,41253.0,0.13632608]
[1610115253681,0.58427274,41254.0,41251.0,0.11082]
[1610115254682,0.13632608,41252.0,41251.0,0.11082]
[1610115255081,0.46604274,41254.0,41251.0,0.11082]
[1610115257985,0.46604274,41254.0,41243.0,0.13632608]
[1610115258885,0.46604274,41254.0,41253.0,0.13632608]
[1610115260189,0.2714,41300.0,41253.0,0.13632608]
[1610115260689,0.13632608,41272.0,41269.0,0.13632608]
[1610115263693,0.13632608,41272.0,41250.0,1.0893]
[1610115264794,0.07956,41291.0,41260.0,0.13632608]
[1610115266094,0.2874,41301.0,41260.0,0.13632608]
[1610115266495,1.5,41300.0,41259.0,0.10662]
[1610115266695,0.13632608,41260.0,41259.0,0.10662]
[1610115270299,0.13632608,41260.0,41250.0,1.0893]
[1610115270899,0.13632608,41255.0,41250.0,1.0893]
[1610115274804,0.13632608,41255.0,41250.0,1.22562608]
[1610115276808,0.13632608,41255.0,41250.0,1.0893]
[1610115277708,0.13632608,41255.0,41251.0,0.00027627]
[1610115278809,0.13632608,41255.0,41250.0,1.0893]
[1610115279511,0.13632608,41255.0,41251.0,0.00027627]
[1610115286018,0.08771,41282.0,41251.0,0.00027627]
[1610115286317,0.2998,41299.0,41251.0,0.00027627]
[1610115286716,0.00029675,41281.0,41251.0,0.00027627]
[1610115287016,0.12772,41281.0,41264.0,0.13632608]
[1610115287318,0.00029675,41280.0,41264.0,0.13632608]
[1610115287618,0.00029675,41280.0,41265.0,0.00027798]
[1610115289021,0.00029675,41280.0,41269.0,0.13632608]
[1610115289220,0.00029675,41280.0,41270.0,0.00027967]
[1610115290621,0.00029675,41280.0,41252.0,0.02995048]